fUSD/lending_fUSD_20251006
["ID","MTS","AMOUNT","RATE_DAILY","PERIOD"]
[389617747,1759750786308,-151.0,0.00016163,2]
[389617748,1759750786341,-156.12615864,0.00016163,2]
[389617749,1759750786368,-6486.27022245,0.00016173,2]
[389617750,1759750786393,-500.0,0.00016231,2]
[389617751,1759750786425,-811.69129084,0.00016238,2]
[389617752,1759750786457,-286.78449995,0.00016238,2]
[389617753,1759750786487,-811.69129076,0.00016249,2]
[389617754,1759750786517,-811.69129076,0.0001626,2]
[389617755,1759750786544,-200.0,0.00016266,2]
[389617756,1759750786574,-500.0,0.00016266,2]
[389617757,1759750786603,-150.0,0.00016266,2]
[389617758,1759750786634,-605.0,0.00016266,2]
[389617759,1759750786666,-150.0,0.00016266,2]
[389617760,1759750786697,-200.0,0.00016266,2]
[389617761,1759750786726,-500.0,0.00016266,2]
[389617762,1759750786753,-811.69129076,0.00016271,2]
[389617763,1759750786784,-300.0,0.00016272,2]
[389617764,1759750786811,-38379.72091842,0.0001628,2]
[389617765,1759750786841,-811.69129076,0.00016282,2]
[389617766,1759750786874,-158.2250401,0.00016283,2]
[389617767,1759750786901,-811.69129076,0.00016294,2]
[389617768,1759750786926,-150.0,0.000163,2]
[389617769,1759750786953,-158.2250401,0.00016301,2]
[389617770,1759750786979,-158.2250401,0.00016305,2]
[389617771,1759750787007,-811.69129076,0.00016305,2]
[389617772,1759750787037,-818.67050092,0.00016305,2]
[389617773,1759750787064,-200.0,0.00016307,2]
[389617774,1759750787090,-332.0,0.00016307,2]
[389617775,1759750787118,-811.69129076,0.00016316,2]
[389617776,1759750787145,-152.0,0.0001632,4]
[389617777,1759750787172,-811.69129076,0.00016327,2]
[389617778,1759750787201,-5000.0,0.0001633,2]
[389617779,1759750787228,-378.0,0.00016334,2]
[389617780,1759750787256,-158.2250401,0.00016336,2]
[389617781,1759750787282,-186.83158956,0.00016338,2]
[389617782,1759750787310,-17324.29878321,0.00016338,2]
[389617783,1759750787336,-258.40872584,0.00016338,2]
[389617784,1759750787363,-811.69129076,0.00016338,2]
[389617785,1759750787390,-210.62278024,0.00016338,2]
[389617786,1759750787416,-852.494109,0.00016338,2]
[389617787,1759750787443,-1263.37128378,0.00016338,2]
[389617788,1759750787470,-237.27978535,0.00016338,2]
[389617789,1759750787498,-540.1558907,0.00016338,2]
[389617790,1759750787526,-492.5706,0.00016338,2]
[389617791,1759750787553,-2001.2473,0.00016338,2]
[389617792,1759750787580,-265.2334,0.00016338,2]
[389617793,1759750787607,-2440.9639,0.00016338,2]
[389617794,1759750787638,-378.0,0.0001635,2]
[389617795,1759750787685,-250.0,0.00016354,2]
[389617796,1759750787723,-700.0,0.0001637,2]
[389617797,1759750787750,-700.0,0.0001637,2]
[389617798,1759750787777,-907.85281298,0.0001637,2]
[389617799,1759750787805,-1680.0,0.00016388,2]
[389617800,1759750787833,-2000.0,0.0001639,2]
[389617801,1759750787860,-158.2250401,0.00016396,2]
[389617802,1759750787887,-190.21218168,0.00016422,2]
[389617803,1759750787913,-500.0,0.00016435,2]
[389617804,1759750787940,-150.0,0.00016435,2]
[389617805,1759750787967,-634.0,0.00016435,2]
[389617806,1759750787994,-500.0,0.00016435,2]
[389617807,1759750788021,-3566.0,0.00016435,2]
[389617808,1759750788047,-500.0,0.00016435,2]
[389617809,1759750788075,-151.0,0.00016435,2]
[389617810,1759750788101,-151.0,0.00016435,2]
[389617811,1759750788128,-378.0,0.00016435,2]
[389617812,1759750788155,-300.0,0.00016437,2]
[389617813,1759750788180,-8898.46739177,0.00016437,2]
[389617814,1759750788210,-499040.53800492,0.00016438,2]
[389617815,1759750788237,-500.0,0.00016438,2]
[389617816,1759750788264,-500.0,0.00016438,2]
[389617817,1759750788290,-548.32,0.00016438,2]
[389617818,1759750788316,-500.0,0.00016438,2]
[389617819,1759750788343,-548.32,0.00016438,2]
[389617820,1759750788368,-500.0,0.00016438,2]
[389617821,1759750788396,-548.32,0.00016438,2]
[389617822,1759750788423,-500.0,0.00016438,2]
[389617823,1759750788449,-548.32,0.00016438,2]
[389617824,1759750788475,-240.0,0.00016438,2]
[389617825,1759750788501,-548.32,0.00016438,2]
[389617826,1759750788527,-548.32,0.00016438,2]
[389617827,1759750788553,-548.32,0.00016438,2]
[389617828,1759750788579,-548.32,0.00016438,2]
[389617829,1759750788603,-548.32,0.00016438,2]
[389617830,1759750788632,-500.0,0.00016438,2]
[389617831,1759750788664,-500.0,0.00016438,2]
[389617832,1759750788694,-548.32,0.00016438,2]
[389617833,1759750788725,-500.0,0.00016438,2]
[389617834,1759750788754,-548.32,0.00016438,2]
[389617835,1759750788782,-500.0,0.00016438,2]
[389617836,1759750788810,-500.0,0.00016438,2]
[389617837,1759750788840,-548.36,0.00016438,2]
[389617838,1759750788868,-501.51642156,0.00016438,2]
[389617839,1759750788897,-500.0,0.00016438,2]
[389617840,1759750788928,-500.0,0.00016438,2]
[389617841,1759750788959,-261.59045972,0.00016438,2]
[389617842,1759750788990,-500.0,0.00016438,2]
[389617843,1759750789021,-502.37204164,0.00016438,2]
[389617844,1759750789057,-500.0,0.00016438,2]
[389617845,1759750789088,-500.0,0.00016438,2]
[389617846,1759750789125,-500.0,0.00016438,2]
[389617847,1759750789155,-500.0,0.00016438,2]
[389617848,1759750789187,-315.81590509,0.00016438,2]
[389617849,1759750789672,-502.09179901,0.00016438,2]
[389617850,1759750789694,-501.64335613,0.00016438,2]
[389617851,1759750789723,-500.0,0.00016438,2]
[389617852,1759750789745,-151.0,0.00016438,2]
[389617853,1759750789766,-501.54103539,0.00016438,2]
[389617854,1759750789787,-406.18812503,0.00016438,2]
[389617855,1759750789809,-500.0,0.00016438,2]
[389617856,1759750789832,-488.19132643,0.00016438,2]
[389617857,1759750789856,-638.85200706,0.00016438,2]
[389617858,1759750789881,-500.0,0.00016438,2]
[389617859,1759750789905,-508.77502087,0.00016438,2]
[389617860,1759750789931,-500.0,0.00016438,2]
[389617861,1759750789955,-500.0,0.00016438,2]
[389617862,1759750789980,-500.0,0.00016438,2]
[389617863,1759750790002,-394.80009745,0.00016438,2]
[389617864,1759750790025,-932.66,0.00016438,2]
[389617865,1759750790048,-932.66,0.00016438,2]
[389617866,1759750790070,-932.66,0.00016438,2]
[389617867,1759750790093,-1010.8,0.00016438,2]
[389617868,1759750790117,-1010.8,0.00016438,2]
[389617869,1759750790141,-932.66,0.00016438,2]
[389617870,1759750790163,-932.66,0.00016438,2]
[389617871,1759750790186,-1010.8,0.00016438,2]
[389617872,1759750790209,-932.66,0.00016438,2]
[389617873,1759750790231,-1010.8,0.00016438,2]
[389617874,1759750790253,-932.66,0.00016438,2]
[389617875,1759750790276,-1010.8,0.00016438,2]
[389617876,1759750790297,-500.0,0.00016438,2]
[389617877,1759750790319,-932.66,0.00016438,2]
[389617878,1759750790341,-1010.8,0.00016438,2]
[389617879,1759750790364,-500.0,0.00016438,2]
[389617880,1759750790399,-932.66,0.00016438,2]
[389617881,1759750790422,-1010.8,0.00016438,2]
[389617882,1759750790445,-258.98773599,0.00016438,2]
[389617883,1759750790469,-932.66,0.00016438,2]
[389617884,1759750790491,-1010.8,0.00016438,2]
[389617885,1759750790513,-932.66,0.00016438,2]
[389617886,1759750790537,-1010.8,0.00016438,2]
[389617887,1759750790560,-932.66,0.00016438,2]
[389617888,1759750790583,-1010.8,0.00016438,2]
[389617889,1759750790607,-932.66,0.00016438,2]
[389617890,1759750790634,-1010.8,0.00016438,2]
[389617891,1759750790657,-1010.8,0.00016438,2]
[389617892,1759750790681,-932.66,0.00016438,2]
[389617893,1759750790706,-1010.8,0.00016438,2]
[389617894,1759750790729,-932.66,0.00016438,2]
[389617895,1759750790753,-1010.8,0.00016438,2]
[389617896,1759750790776,-932.66,0.00016438,2]
[389617897,1759750790799,-1010.8,0.00016438,2]
[389617898,1759750790827,-932.66,0.00016438,2]
[389617899,1759750790855,-1010.8,0.00016438,2]
[389617900,1759750790880,-932.66,0.00016438,2]
[389617901,1759750790904,-932.66,0.00016438,2]
[389617902,1759750790929,-1010.8,0.00016438,2]
[389617903,1759750790955,-932.66,0.00016438,2]
[389617904,1759750790979,-1010.8,0.00016438,2]
[389617905,1759750791003,-932.66,0.00016438,2]
[389617906,1759750791028,-932.66,0.00016438,2]
[389617907,1759750791054,-932.66,0.00016438,2]
[389617908,1759750791077,-932.75009211,0.00016438,2]
[389617909,1759750791104,-500.0,0.00016438,2]
[389617910,1759750791128,-500.0,0.00016438,2]
[389617911,1759750791152,-500.0,0.00016438,2]
[389617912,1759750791178,-500.0,0.00016438,2]
[389617913,1759750791203,-500.0,0.00016438,2]
[389617914,1759750791226,-580.93465355,0.00016438,2]
[389617915,1759750791249,-1010.8,0.00016438,2]
[389617916,1759750791273,-1010.8,0.00016438,2]
[389617917,1759750791302,-1010.8,0.00016438,2]
[389617918,1759750791327,-1010.8,0.00016438,2]
[389617919,1759750791350,-1240.78,0.00016438,2]
[389617920,1759750791374,-1240.78,0.00016438,2]
[389617921,1759750791398,-1010.8,0.00016438,2]
[389617922,1759750791422,-1240.78,0.00016438,2]
[389617923,1759750791446,-1010.82123077,0.00016438,2]
[389617924,1759750791469,-1240.78,0.00016438,2]
[389617925,1759750791492,-1240.78,0.00016438,2]
[389617926,1759750791515,-1240.78,0.00016438,2]
[389617927,1759750791538,-1240.78,0.00016438,2]
[389617928,1759750791565,-1240.78,0.00016438,2]
[389617929,1759750791589,-1240.78,0.00016438,2]
[389617930,1759750791614,-1240.78,0.00016438,2]
[389617931,1759750791641,-1240.78,0.00016438,2]
[389617932,1759750791667,-1240.78,0.00016438,2]
[389617933,1759750791691,-1240.78,0.00016438,2]
[389617934,1759750791717,-1240.78,0.00016438,2]
[389617935,1759750791741,-1240.78,0.00016438,2]
[389617936,1759750791765,-1240.78,0.00016438,2]
[389617937,1759750791789,-1240.78,0.00016438,2]
[389617938,1759750791816,-1240.78,0.00016438,2]
[389617939,1759750791840,-1240.78,0.00016438,2]
[389617940,1759750791865,-1240.78,0.00016438,2]
[389617941,1759750791889,-1240.78,0.00016438,2]
[389617942,1759750791912,-1240.78,0.00016438,2]
[389617943,1759750791937,-1240.78,0.00016438,2]
[389617944,1759750791961,-1240.89103344,0.00016438,2]
[389617945,1759750791985,-500.0,0.00016438,2]
[389617946,1759750792010,-500.0,0.00016438,2]
[389617947,1759750792034,-500.0,0.00016438,2]
[389617948,1759750792058,-500.0,0.00016438,2]
[389617949,1759750792084,-461.25514817,0.00016438,2]
[389617950,1759750792108,-500.0,0.00016438,2]
[389617951,1759750792131,-500.0,0.00016438,2]
[389617952,1759750792154,-500.0,0.00016438,2]
[389617953,1759750792178,-500.0,0.00016438,2]
[389617954,1759750792203,-500.0,0.00016438,2]
[389617955,1759750792227,-500.0,0.00016438,2]
[389617956,1759750792255,-500.0,0.00016438,2]
[389617957,1759750792278,-500.0,0.00016438,2]
[389617958,1759750792302,-500.0,0.00016438,2]
[389617959,1759750792326,-500.0,0.00016438,2]
[389617960,1759750792350,-500.0,0.00016438,2]
[389617961,1759750792374,-500.0,0.00016438,2]
[389617962,1759750792397,-500.0,0.00016438,2]
[389617963,1759750792421,-500.0,0.00016438,2]
[389617964,1759750792446,-500.0,0.00016438,2]
[389617965,1759750792470,-500.0,0.00016438,2]
[389617966,1759750792494,-500.0,0.00016438,2]
[389617967,1759750792517,-500.0,0.00016438,2]
[389617968,1759750792815,-280.01938869,0.00016438,2]
[389617969,1759750792840,-500.0,0.00016438,2]
[389617970,1759750792864,-500.0,0.00016438,2]
[389617971,1759750792887,-514.65338835,0.00016438,2]
[389617972,1759750792915,-500.0,0.00016438,2]
[389617973,1759750792939,-512.55771904,0.00016438,2]
[389617974,1759750792964,-500.0,0.00016438,2]
[389617975,1759750792988,-500.0,0.00016438,2]
[389617976,1759750793012,-279.56215166,0.00016438,2]
[389617977,1759750793037,-500.0,0.00016438,2]
[389617978,1759750793061,-500.0,0.00016438,2]
[389617979,1759750793086,-500.0,0.00016438,2]
[389617980,1759750793114,-500.0,0.00016438,2]
[389617981,1759750793140,-500.0,0.00016438,2]
[389617982,1759750793167,-500.0,0.00016438,2]
[389617983,1759750793197,-500.0,0.00016438,2]
[389617984,1759750793225,-500.0,0.00016438,2]
[389617985,1759750793251,-500.0,0.00016438,2]
[389617986,1759750793281,-211.05815816,0.00016438,2]
[389617987,1759750793308,-986.08,0.00016438,2]
[389617988,1759750793334,-986.08,0.00016438,2]
[389617989,1759750793359,-986.08,0.00016438,2]
[389617990,1759750793385,-986.08,0.00016438,2]
[389617991,1759750793410,-986.08,0.00016438,2]
[389617992,1759750793436,-986.08,0.00016438,2]
[389617993,1759750793463,-986.08,0.00016438,2]
[389617994,1759750793488,-986.08,0.00016438,2]
[389617995,1759750793513,-986.08,0.00016438,2]
[389617996,1759750793537,-986.08,0.00016438,2]
[389617997,1759750793562,-986.08,0.00016438,2]
[389617998,1759750793587,-500.0,0.00016438,2]
[389617999,1759750793612,-986.08,0.00016438,2]
[389618000,1759750793641,-500.0,0.00016438,2]
[389618001,1759750793666,-986.08,0.00016438,2]
[389618002,1759750793691,-986.08,0.00016438,2]
[389618003,1759750793719,-986.08,0.00016438,2]
[389618004,1759750793744,-500.0,0.00016438,2]
[389618005,1759750793771,-986.08,0.00016438,2]
[389618006,1759750793797,-986.08,0.00016438,2]
[389618007,1759750793823,-500.0,0.00016438,2]
[389618008,1759750793848,-986.08,0.00016438,2]
[389618009,1759750793872,-500.0,0.00016438,2]
[389618010,1759750793897,-986.08,0.00016438,2]
[389618011,1759750793921,-500.0,0.00016438,2]
[389618012,1759750793948,-986.08,0.00016438,2]
[389618013,1759750793972,-500.0,0.00016438,2]
[389618014,1759750793997,-865.52,0.00016438,2]
[389618015,1759750794020,-986.08,0.00016438,2]
[389618016,1759750794046,-500.0,0.00016438,2]
[389618017,1759750794070,-865.52,0.00016438,2]
[389618018,1759750794094,-986.08,0.00016438,2]
[389618019,1759750794118,-500.0,0.00016438,2]
[389618020,1759750794142,-986.08,0.00016438,2]
[389618021,1759750794168,-865.52,0.00016438,2]
[389618022,1759750794192,-500.0,0.00016438,2]
[389618023,1759750794217,-865.52,0.00016438,2]
[389618024,1759750794241,-986.22797881,0.00016438,2]
[389618025,1759750794264,-500.0,0.00016438,2]
[389618026,1759750794288,-865.52,0.00016438,2]
[389618027,1759750794311,-500.0,0.00016438,2]
[389618028,1759750794334,-865.52,0.00016438,2]
[389618029,1759750794358,-500.0,0.00016438,2]
[389618030,1759750794380,-865.52,0.00016438,2]
[389618031,1759750794403,-865.52,0.00016438,2]
[389618032,1759750794427,-865.52,0.00016438,2]
[389618033,1759750794451,-865.52,0.00016438,2]
[389618034,1759750794474,-865.52,0.00016438,2]
[389618035,1759750794497,-865.52,0.00016438,2]
[389618036,1759750794520,-500.0,0.00016438,2]
[389618037,1759750794544,-865.52,0.00016438,2]
[389618038,1759750794567,-500.0,0.00016438,2]
[389618039,1759750794592,-865.52,0.00016438,2]
[389618040,1759750794615,-500.0,0.00016438,2]
[389618041,1759750794642,-865.52,0.00016438,2]
[389618042,1759750794666,-500.0,0.00016438,2]
[389618043,1759750794693,-865.52,0.00016438,2]
[389618044,1759750794717,-865.52,0.00016438,2]
[389618045,1759750794740,-500.0,0.00016438,2]
[389618046,1759750794763,-865.52,0.00016438,2]
[389618047,1759750794788,-500.0,0.00016438,2]
[389618048,1759750794811,-865.52,0.00016438,2]
[389618049,1759750794834,-500.0,0.00016438,2]
[389618050,1759750794856,-865.52,0.00016438,2]
[389618051,1759750794880,-500.0,0.00016438,2]
[389618052,1759750794904,-500.0,0.00016438,2]
[389618053,1759750794927,-865.52,0.00016438,2]
[389618054,1759750795016,-500.0,0.00016438,2]
[389618055,1759750795040,-865.52,0.00016438,2]
[389618056,1759750795062,-500.0,0.00016438,2]
[389618057,1759750795085,-865.52,0.00016438,2]
[389618058,1759750795107,-865.63549589,0.00016438,2]
[389618059,1759750795130,-500.0,0.00016438,2]
[389618060,1759750795152,-500.0,0.00016438,2]
[389618061,1759750795176,-500.0,0.00016438,2]
[389618062,1759750795199,-500.0,0.00016438,2]
[389618063,1759750795220,-500.0,0.00016438,2]
[389618064,1759750795243,-500.0,0.00016438,2]
[389618065,1759750795265,-500.0,0.00016438,2]
[389618066,1759750795288,-500.0,0.00016438,2]
[389618067,1759750795310,-259.23563262,0.00016438,2]
[389618068,1759750795333,-500.0,0.00016438,2]
[389618069,1759750795355,-500.0,0.00016438,2]
[389618070,1759750795378,-500.0,0.00016438,2]
[389618071,1759750795401,-500.0,0.00016438,2]
[389618072,1759750795425,-500.0,0.00016438,2]
[389618073,1759750795449,-500.0,0.00016438,2]
[389618074,1759750795473,-500.0,0.00016438,2]
[389618075,1759750795497,-537.78870424,0.00016438,2]
[389618076,1759750795520,-417.06873023,0.00016438,2]
[389618077,1759750795545,-638.3793033,0.00016438,2]
[389618078,1759750795568,-415.64389492,0.00016438,2]
[389618079,1759750795591,-500.0,0.00016438,2]
[389618080,1759750795613,-500.0,0.00016438,2]
[389618081,1759750795639,-500.0,0.00016438,2]
[389618082,1759750795662,-501.07368526,0.00016438,2]
[389618083,1759750795687,-500.0,0.00016438,2]
[389618084,1759750795711,-1187.17,0.00016438,2]
[389618085,1759750795735,-1187.17,0.00016438,2]
[389618086,1759750795759,-1187.17,0.00016438,2]
[389618087,1759750795782,-1187.17,0.00016438,2]
[389618088,1759750795805,-1187.17,0.00016438,2]
[389618089,1759750795827,-1187.17,0.00016438,2]
[389618090,1759750795850,-1187.17,0.00016438,2]
[389618091,1759750795872,-500.0,0.00016438,2]
[389618092,1759750795896,-1187.17,0.00016438,2]
[389618093,1759750795918,-500.0,0.00016438,2]
[389618094,1759750795942,-1187.17,0.00016438,2]
[389618095,1759750795965,-1187.17,0.00016438,2]
[389618096,1759750795988,-500.0,0.00016438,2]
[389618097,1759750796011,-1187.17,0.00016438,2]
[389618098,1759750796038,-500.0,0.00016438,2]
[389618099,1759750796061,-1187.17,0.00016438,2]
[389618100,1759750796085,-500.0,0.00016438,2]
[389618101,1759750796111,-1187.17,0.00016438,2]
[389618102,1759750796139,-500.0,0.00016438,2]
[389618103,1759750796164,-1187.17,0.00016438,2]
[389618104,1759750796187,-500.0,0.00016438,2]
[389618105,1759750796209,-1187.17,0.00016438,2]
[389618106,1759750796230,-500.0,0.00016438,2]
[389618107,1759750796259,-1187.17,0.00016438,2]
[389618108,1759750796282,-500.0,0.00016438,2]
[389618109,1759750796305,-1187.17,0.00016438,2]
[389618110,1759750796328,-500.0,0.00016438,2]
[389618111,1759750796351,-1187.17,0.00016438,2]
[389618112,1759750796373,-500.0,0.00016438,2]
[389618113,1759750796397,-1187.17,0.00016438,2]
[389618114,1759750796419,-500.0,0.00016438,2]
[389618115,1759750796441,-1187.17,0.00016438,2]
[389618116,1759750796464,-500.0,0.00016438,2]
[389618117,1759750796486,-1187.17,0.00016438,2]
[389618118,1759750796510,-500.0,0.00016438,2]
[389618119,1759750796533,-1187.17,0.00016438,2]
[389618120,1759750796556,-500.0,0.00016438,2]
[389618121,1759750796579,-1187.17,0.00016438,2]
[389618122,1759750796602,-500.0,0.00016438,2]
[389618123,1759750796626,-1187.39977588,0.00016438,2]
[389618124,1759750796651,-500.0,0.00016438,2]
[389618125,1759750796673,-500.0,0.00016438,2]
[389618126,1759750796697,-500.0,0.00016438,2]
[389618127,1759750796719,-500.0,0.00016438,2]
[389618128,1759750796743,-500.0,0.00016438,2]
[389618129,1759750796765,-500.0,0.00016438,2]
[389618130,1759750796790,-500.0,0.00016438,2]
[389618131,1759750796814,-467.56,0.00016438,2]
[389618132,1759750796839,-500.0,0.00016438,2]
[389618133,1759750796862,-439.93515208,0.00016438,2]
[389618134,1759750796886,-1203.2,0.00016438,2]
[389618135,1759750796911,-1203.2,0.00016438,2]
[389618136,1759750796935,-1203.2,0.00016438,2]
[389618137,1759750796960,-1203.2,0.00016438,2]
[389618138,1759750796984,-1203.2,0.00016438,2]
[389618139,1759750797007,-1203.2,0.00016438,2]
[389618140,1759750797032,-1203.2,0.00016438,2]
[389618141,1759750797054,-1203.2,0.00016438,2]
[389618142,1759750797076,-1203.2,0.00016438,2]
[389618143,1759750797098,-1203.2,0.00016438,2]
[389618144,1759750797122,-1203.2,0.00016438,2]
[389618145,1759750797145,-1203.2,0.00016438,2]
[389618146,1759750797167,-1203.2,0.00016438,2]
[389618147,1759750797192,-1203.2,0.00016438,2]
[389618148,1759750797216,-1203.2,0.00016438,2]
[389618149,1759750797239,-500.0,0.00016438,2]
[389618150,1759750797262,-1203.2,0.00016438,2]
[389618151,1759750797285,-500.0,0.00016438,2]
[389618152,1759750797310,-1203.2,0.00016438,2]
[389618153,1759750797334,-1203.2,0.00016438,2]
[389618154,1759750797358,-500.0,0.00016438,2]
[389618155,1759750797381,-1203.2,0.00016438,2]
[389618156,1759750797404,-500.0,0.00016438,2]
[389618157,1759750797428,-845.0389842,0.00016438,2]
[389618863,1759751131796,259.36,7.698e-05,2]
[389618864,1759751132006,259.36,8.103e-05,2]
[389618865,1759751132244,259.36,8.508e-05,2]
[389618866,1759751132474,259.36,8.913e-05,2]
[389618867,1759751132695,259.36,9.318e-05,2]
[389618868,1759751132910,259.36,9.723e-05,2]
[389618869,1759751133107,259.36,0.00010129,2]
[389618870,1759751133326,259.36,0.00010534,2]
[389618871,1759751133524,259.36,0.00010939,2]
[389618872,1759751133736,259.36,0.00011344,2]
[389618873,1759751133945,259.36,0.00011749,2]
[389618905,1759751366139,-259.36,0.00012154,2]
[389618906,1759751366161,-259.36,0.00012559,2]
[389618907,1759751366184,-500.0,0.00012963,2]
[389618908,1759751366209,-602.61903785,0.00012963,2]
[389618909,1759751366230,-259.36,0.00012965,2]
[389618910,1759751366252,-250.0,0.0001337,2]
[389618911,1759751366274,-259.36,0.0001337,2]
[389618912,1759751366298,-259.36,0.00013775,2]
[389618913,1759751366320,-180.28007698,0.00013895,2]
[389618914,1759751366343,-259.36,0.0001418,2]
[389618915,1759751366364,-259.36,0.00014585,2]
[389618922,1759751431920,-195.0,0.00014768,2]
[389618923,1759751431929,-262.75960097,0.00014769,2]
[389618924,1759751431939,-500.0,0.00014769,2]
[389618925,1759751431948,-300.0,0.00014769,2]
[389618926,1759751431959,-1200.0,0.00014769,2]
[389618927,1759751431969,-270.7187203,0.0001477,2]
[389618928,1759751431983,-150.0,0.0001477,2]
[389618929,1759751431993,-294.1753421,0.0001477,2]
[389618931,1759751432003,-150.0,0.0001477,2]
[389618933,1759751432012,-249.33647819,0.0001477,2]
[389618934,1759751432023,-262.69205977,0.0001477,2]
[389618935,1759751432032,-195.0,0.000148,2]
[389618936,1759751432042,-505.17207083,0.00014845,2]
[389618937,1759751432054,-150.0,0.00014927,7]
[389618938,1759751432064,-259.36,0.0001499,2]
[389618939,1759751432074,-150.0,0.00015294,2]
[389618940,1759751432084,-55.67075085,0.00015395,2]
[389618941,1759751432095,-203.68924915,0.00015395,2]
[389618942,1759751432104,-557.17218982,0.00015414,2]
[389618943,1759751432132,-1242.9,0.00015414,2]
[389618944,1759751432148,-318.19523245,0.00015414,2]
[389618945,1759751432159,-1820.29590788,0.00015414,2]
[389618946,1759751432353,-175.63347003,0.00014769,2]
[389618947,1759751432363,-500.05074159,0.00014769,2]
[389618948,1759751432373,-140.31578838,0.00015414,2]
[389618949,1759751432386,-846.96088147,0.00015414,2]
[389618950,1759751432396,-429.13,0.00015565,2]
[389618951,1759751432406,-437.15,0.00015565,2]
[389618952,1759751432416,-433.77,0.00015565,2]
[389618953,1759751432426,-428.64,0.00015565,2]
[389618954,1759751432435,-442.75,0.00015565,2]
[389618955,1759751432446,-432.85,0.00015565,2]
[389618956,1759751432455,-430.38,0.00015566,2]
[389618957,1759751432465,-443.07,0.00015566,2]
[389618958,1759751432475,-433.44,0.00015566,2]
[389618959,1759751432485,-440.91,0.00015566,2]
[389618960,1759751432495,-439.61,0.00015566,2]
[389618961,1759751432505,-552.05,0.00015566,2]
[389618962,1759751432517,-805.6238558,0.00015994,2]
[389618963,1759751432526,-8550.65,0.00016,2]
[389618964,1759751432536,-550.0,0.0001623,2]
[389618965,1759751432546,-300.0,0.00016245,2]
[389618966,1759751432556,-300.0,0.00016245,2]
[389618967,1759751432566,-500.0,0.00016245,2]
[389618968,1759751432576,-195.0,0.00016245,2]
[389618969,1759751432587,-1680.0,0.00016246,2]
[389618970,1759751432597,-601.46619955,0.00016256,2]
[389618971,1759751432607,-370.68887098,0.00016266,2]
[389618972,1759751432616,-563.17817,0.0001627,2]
[389618973,1759751432626,-1495.66834543,0.00016304,2]
[389618974,1759751432636,-2447.856,0.00016305,2]
[389618975,1759751432646,-178.484,0.00016305,2]
[389618976,1759751432656,-200.0,0.00016307,2]
[389618977,1759751432666,-169.4356582,0.00016336,3]
[389618978,1759751432675,-4500.0,0.00016338,2]
[389618979,1759751432684,-759.93187382,0.00016338,2]
[389618989,1759751437826,-4240.06812618,0.00016338,2]
[389618990,1759751437836,-2500.0,0.00016338,2]
[389618991,1759751437845,-159.86277053,0.00016338,2]
[389618992,1759751437855,-3946.39617607,0.00016338,2]
[389618993,1759751437884,-183.23996351,0.00016338,2]
[389618994,1759751437893,-172.27248388,0.00016338,2]
[389618995,1759751437902,-428.98757861,0.00016395,2]
[389618996,1759751437988,-4680.35316627,0.00016395,2]
[389618997,1759751437998,-2744.27,0.00016428,2]
[389618998,1759751438008,-2744.27,0.00016428,2]
[389618999,1759751438019,-201.49366745,0.00016428,2]